bitfinex/quotes_SOLUSD_20220207
["timestamp","ask_amount","ask_price","bid_price","bid_amount"]
[1644228979681,52.85094095,116.22,116.15,46.1132873]
[1644228983983,52.85094095,116.22,116.15,0.07399]
[1644228988310,54.06521992,116.22,116.15,0.07399]
[1644228989512,46.36653565,116.2,116.15,0.07399]
[1644228995420,1.21427897,116.22,116.15,0.07399]
[1644228995620,1.21427897,116.23,116.15,1.93367275]
[1644228995820,1.21427897,116.24,116.15,2.18367275]
[1644228996222,24.30777897,116.25,116.15,8.18367275]
[1644228996424,35.72104699,116.24,116.16,66.50138283]
[1644228996823,35.72104699,116.24,116.18,42.2357315]
[1644228997226,35.72104699,116.24,116.18,44.34541425]
[1644228997426,1.21427897,116.26,116.18,44.34541425]
[1644228997628,1.21427897,116.26,116.19,23.918]
[1644228997825,1.21427897,116.26,116.19,24.168]
[1644228998025,1.21427897,116.26,116.19,26.02768275]
[1644228998426,39.98599311,116.26,116.2,41.70809837]
[1644228998828,38.77171414,116.26,116.2,41.70809837]
[1644228999427,61.04760974,116.28,116.2,41.70809837]
[1644228999627,61.04760974,116.28,116.22,34.6767536]
[1644228999828,55.16941119,116.28,116.22,34.6767536]
[1644229000229,12.9114,116.28,116.22,34.6767536]
[1644229001230,41.71445533,116.29,116.22,34.6767536]
[1644229002837,41.71445533,116.29,116.22,34.9267536]
[1644229003140,37.2472,116.3,116.22,34.9267536]
[1644229003362,37.2472,116.3,116.23,24.5017]
[1644229003732,24.3381,116.3,116.23,24.5017]
[1644229004134,24.3381,116.3,116.24,44.80839091]
[1644229005537,63.77085212,116.3,116.24,44.80839091]
[1644229006639,39.43275212,116.3,116.24,44.80839091]
[1644229010444,39.43275212,116.3,116.23,24.5017]
[1644229011244,35.488,116.32,116.23,24.5017]
[1644229012142,37.82845799,116.31,116.24,45.21722128]
[1644229012747,12.9067,116.32,116.24,45.46722128]
[1644229013048,27.07153518,116.36,116.24,45.46722128]
[1644229013049,4.299,116.37,116.24,47.32690403]
[1644229013347,19.15961462,116.4,116.25,39.8165]
[1644229013545,16.719,116.4,116.25,58.8763]
[1644229013745,53.99782911,116.39,116.26,40.13355384]
[1644229013945,53.99782911,116.39,116.26,44.43155384]
[1644229014145,53.99782911,116.39,116.27,26.82218275]
[1644229014345,35.07501064,116.42,116.28,60.69079579]
[1644229014544,35.07501064,116.42,116.29,60.7403]
[1644229014545,17.09839782,116.42,116.29,60.7403]
[1644229014745,4.297,116.43,116.29,60.9903]
[1644229014949,4.297,116.43,116.29,85.80815325]
[1644229015144,11.93018086,116.42,116.29,66.9903]
[1644229015345,11.93018086,116.42,116.3,41.94424486]
[1644229015346,60.0466492,116.41,116.3,41.94424486]
[1644229015553,55.7496492,116.41,116.3,54.36424486]
[1644229016548,55.7496492,116.41,116.31,23.8898]
[1644229016748,55.7496492,116.41,116.32,46.81942116]
[1644229017748,60.0456492,116.41,116.32,46.81942116]
[1644229017948,62.19247777,116.41,116.32,46.81942116]
[1644229019450,55.7496492,116.41,116.32,46.81942116]
[1644229020651,4.296,116.4,116.32,46.81942116]
[1644229020856,56.04575339,116.39,116.32,46.81942116]
[1644229021651,56.04575339,116.39,116.3,22.7578]
[1644229021853,56.04575339,116.39,116.29,23.3578]
[1644229022052,58.19258196,116.39,116.27,12.42]
[1644229022255,39.6078,116.38,116.24,12.42]
[1644229022558,12.9047,116.35,116.24,30.2544]
[1644229022855,51.26690158,116.34,116.25,48.67379729]
[1644229023057,46.96790158,116.34,116.25,48.67379729]
[1644229024462,46.96790158,116.34,116.25,48.92379729]
[1644229024662,46.96790158,116.34,116.27,47.34127383]
[1644229025464,17.2013,116.37,116.27,47.34127383]
[1644229025664,37.8551,116.37,116.28,24.865]
[1644229026575,47.01983896,116.36,116.29,47.92497465]
[1644229031583,59.92343896,116.36,116.29,47.92497465]
[1644229032486,64.22143896,116.36,116.29,47.92497465]
[1644229034791,59.92343896,116.36,116.29,47.92497465]
[1644229035590,47.01983896,116.36,116.29,47.92497465]
[1644229037192,24.9528,116.37,116.29,47.92497465]
[1644229037391,25.3189,116.4,116.3,24.3332]
[1644229038191,45.10675272,116.39,116.31,40.20733345]
[1644229038792,68.28495272,116.39,116.31,40.20733345]
[1644229042195,12.8989,116.4,116.31,40.20733345]
[1644229042398,25.22021462,116.41,116.32,24.9719]
[1644229042795,12.8965,116.42,116.32,25.2219]
[1644229042995,2.44061462,116.42,116.32,37.6419]
[1644229043195,47.6278478,116.42,116.33,41.83862315]
[1644229044004,50.06846242,116.42,116.33,41.83862315]
[1644229045000,62.96556242,116.42,116.33,41.83862315]
[1644229045198,47.6278478,116.42,116.33,42.08862315]
[1644229045400,25.72361462,116.43,116.33,56.3683059]
[1644229045800,23.283,116.43,116.33,56.3683059]
[1644229046200,23.283,116.43,116.34,24.1489]
[1644229046402,58.46079935,116.43,116.35,46.98821342]
[1644229047201,58.46079935,116.43,116.35,47.23821342]
[1644229047401,23.283,116.43,116.35,47.23821342]
[1644229047803,22.5947,116.44,116.35,47.23821342]
[1644229048401,22.5947,116.44,116.36,24.614]
[1644229048603,22.5947,116.44,116.37,47.21425179]
[1644229051008,23.6255,116.46,116.37,59.63425179]
[1644229051210,23.6255,116.46,116.38,23.1687]
[1644229051408,23.6255,116.46,116.38,35.5887]
[1644229051810,23.6255,116.46,116.38,35.8387]
[1644229052015,35.93016954,116.48,116.39,39.70471166]
[1644229052310,2.44061462,116.49,116.41,40.78692851]
[1644229052510,4.87853779,116.49,116.41,40.78692851]
[1644229052913,29.28301462,116.5,116.41,40.78692851]
[1644229053113,22.5494,116.5,116.41,53.45692851]
[1644229053312,57.70881172,116.5,116.41,53.45692851]
[1644229053711,57.70881172,116.5,116.42,23.2213]
[1644229053912,57.70881172,116.5,116.43,48.53437925]
[1644229054313,35.15941172,116.5,116.43,48.53437925]
[1644229057718,35.15941172,116.5,116.43,48.78437925]
[1644229059119,26.80931462,116.54,116.43,48.78437925]
[1644229059320,6.73361462,116.55,116.44,36.1367]
[1644229059518,15.32201462,116.56,116.44,36.1367]
[1644229059754,15.32201462,116.56,116.44,36.3867]
[1644229060151,46.65844795,116.55,116.45,44.51097691]
[1644229060355,46.65844795,116.55,116.45,44.76097691]
[1644229060552,46.65844795,116.55,116.45,57.18097691]
[1644229060751,46.65844795,116.55,116.46,23.7418]
[1644229060958,46.65844795,116.55,116.47,42.20804571]
[1644229062555,46.65844795,116.55,116.47,42.45804571]
[1644229065360,46.65844795,116.55,116.47,42.20804571]
[1644229066563,59.54114795,116.55,116.47,42.20804571]
[1644229066760,59.54114795,116.55,116.46,23.7418]
[1644229067166,61.98176257,116.55,116.45,24.1217]
[1644229067467,16.711,116.54,116.44,4.291]
[1644229067663,12.8857,116.52,116.41,37.0695]
[1644229067864,59.21877143,116.51,116.42,39.68529284]
[1644229068466,34.39377143,116.51,116.44,34.93637556]
[1644229068868,34.39377143,116.51,116.44,35.18637556]
[1644229069067,33.89377143,116.51,116.44,35.18637556]
[1644229070768,33.89377143,116.51,116.44,34.93637556]
[1644229072492,33.89377143,116.51,116.44,35.18637556]
[1644229077392,33.89377143,116.51,116.43,12.42]
[1644229077595,33.89377143,116.51,116.4,29.0879]
[1644229077795,22.7125,116.5,116.41,23.9691]
[1644229078495,41.72128466,116.49,116.42,42.42012997]
[1644229078692,41.72128466,116.49,116.42,42.67012997]
[1644229079092,22.9644,116.52,116.42,42.67012997]
[1644229079293,22.9644,116.52,116.43,22.8178]
[1644229079694,22.9644,116.52,116.43,23.0678]
[1644229080094,44.7505374,116.51,116.44,39.84215658]
[1644229080497,44.7505374,116.51,116.43,22.8178]
[1644229080696,47.19115202,116.51,116.43,22.8178]
[1644229081096,44.7505374,116.51,116.43,22.8178]
[1644229081499,44.7505374,116.51,116.44,35.11188887]
[1644229084299,47.19115202,116.51,116.44,35.11188887]
[1644229084498,44.7505374,116.51,116.44,35.11188887]
[1644229085000,25.40501462,116.52,116.44,35.11188887]
[1644229085202,25.40501462,116.52,116.45,24.8888]
[1644229085598,2.44061462,116.52,116.45,24.8888]
[1644229085799,2.44061462,116.53,116.45,24.8888]
[1644229086002,36.78368,116.52,116.46,46.2292944]
[1644229087701,39.22429462,116.52,116.46,46.2292944]
[1644229088703,2.44061462,116.53,116.46,46.4792944]
[1644229088901,2.4486496,116.53,116.46,46.4792944]
[1644229089302,41.00494319,116.54,116.46,46.4792944]
[1644229089701,43.45313792,116.53,116.46,46.4792944]
[1644229091203,45.89375254,116.53,116.46,46.4792944]
[1644229091402,43.45313792,116.53,116.46,46.4792944]
[1644229092103,43.45313792,116.53,116.46,52.4792944]
[1644229092704,25.97481462,116.54,116.46,52.4792944]
[1644229093308,25.97481462,116.54,116.47,23.1852]
[1644229093505,23.5342,116.54,116.47,23.1852]
[1644229093705,58.64541043,116.54,116.48,40.08382137]
[1644229094507,58.64541043,116.54,116.47,23.1852]
[1644229094706,63.23285362,116.54,116.45,22.7901]
[1644229094907,4.88749432,116.53,116.44,23.2948]
[1644229095206,2.44061462,116.52,116.44,29.2948]
[1644229095406,7.03432289,116.52,116.44,29.2948]
[1644229095611,43.51265478,116.51,116.44,69.20581481]
[1644229095811,43.51265478,116.51,116.44,63.20581481]
[1644229096210,45.65948335,116.51,116.41,22.7901]
[1644229096410,49.95248335,116.51,116.41,47.3783]
[1644229096611,52.39309797,116.51,116.41,47.3783]
[1644229096810,48.10009797,116.51,116.41,47.3783]
[1644229097010,45.65948335,116.51,116.41,47.3783]
[1644229097210,45.65948335,116.51,116.42,36.38370117]
[1644229097617,45.65948335,116.51,116.43,23.3877]
[1644229097812,45.65948335,116.51,116.44,39.18693464]
[1644229098013,58.54678335,116.51,116.44,39.18693464]
[1644229098413,60.98739797,116.51,116.44,39.18693464]
[1644229098613,58.54678335,116.51,116.44,39.18693464]
[1644229099013,62.83878335,116.51,116.44,39.18693464]
[1644229099213,65.27939797,116.51,116.44,39.18693464]
[1644229099815,65.27939797,116.51,116.43,23.3877]
[1644229102120,60.98739797,116.51,116.43,23.3877]
[1644229102317,60.98739797,116.51,116.42,40.73397992]
[1644229103518,58.54678335,116.51,116.42,40.73397992]
[1644229104820,60.98739797,116.51,116.42,40.73397992]
[1644229105424,17.47474319,116.51,116.42,40.73397992]
[1644229105622,12.8873,116.51,116.42,40.98397992]
[1644229105824,23.4247,116.52,116.42,45.27697992]
[1644229106022,39.61831462,116.53,116.43,24.1112]
[1644229106222,39.61831462,116.53,116.43,24.3612]
[1644229106223,37.1777,116.53,116.43,24.3612]
[1644229106422,72.80016242,116.53,116.44,37.66216425]
[1644229106721,72.80016242,116.53,116.44,37.91216425]
[1644229106922,72.80016242,116.53,116.44,37.66216425]
[1644229107123,77.38760561,116.53,116.44,37.66216425]
[1644229107522,2.44619567,116.52,116.44,37.66216425]
[1644229107721,37.49627827,116.51,116.44,37.66216425]
[1644229109026,50.38337827,116.51,116.41,22.7901]
[1644229109229,22.7909,116.5,116.41,22.7901]
[1644229110031,42.93017658,116.49,116.42,39.99472443]
[1644229111932,42.93017658,116.49,116.41,22.7901]
[1644229112154,45.07700515,116.49,116.41,22.7901]
[1644229112334,57.40500515,116.49,116.39,22.595]
[1644229113033,57.40500515,116.49,116.38,42.0752944]
[1644229113233,55.81967658,116.49,116.4,36.48494448]
[1644229113537,55.81967658,116.49,116.42,36.35626947]
[1644229119337,12.8895,116.49,116.42,36.35626947]
[1644229119537,1.22290491,116.48,116.42,36.35626947]
[1644229120737,1.22290491,116.49,116.42,36.60626947]
[1644229121240,1.22290491,116.5,116.42,38.47127851]
[1644229121439,1.22290491,116.5,116.43,28.4088]
[1644229121838,1.22290491,116.5,116.43,28.6588]
[1644229122038,1.22290491,116.5,116.44,38.72737566]
[1644229123140,47.17138604,116.5,116.44,38.72737566]
[1644229123542,47.17138604,116.5,116.4,28.7312]
[1644229123543,2.14682857,116.49,116.4,28.7312]
[1644229123843,1.22290491,116.47,116.38,4.293]
[1644229124041,1.22290491,116.47,116.37,24.5607]
[1644229124241,1.22290491,116.47,116.38,6.0]
[1644229124441,1.22290491,116.47,116.37,30.5607]
[1644229124642,1.22290491,116.47,116.38,48.64661833]
[1644229124842,1.22290491,116.46,116.38,52.93961833]
[1644229125041,1.22290491,116.47,116.39,35.3638]
[1644229125240,1.22290491,116.48,116.39,35.3638]
[1644229125741,1.22290491,116.48,116.4,39.1320136]
[1644229126445,1.22290491,116.48,116.4,53.41702264]
[1644229126642,1.22290491,116.48,116.41,24.2787]
[1644229126841,1.22290491,116.49,116.41,24.5287]
[1644229127267,1.22290491,116.49,116.42,44.18492974]
[1644229128462,2.44061462,116.52,116.42,44.18492974]
[1644229128463,1.22290491,116.5,116.42,44.43492974]
[1644229128662,1.22290491,116.5,116.43,22.9439]
[1644229129265,1.22290491,116.5,116.44,36.0350888]
[1644229131268,1.22290491,116.5,116.44,36.2850888]
[1644229131670,1.22290491,116.5,116.44,36.0350888]
[1644229132867,42.11054673,116.5,116.44,36.0350888]
[1644229133067,1.22290491,116.5,116.44,36.0350888]
[1644229138371,1.22290491,116.49,116.44,36.0350888]
[1644229138772,1.22290491,116.5,116.44,36.0350888]
[1644229139375,45.36485059,116.49,116.44,36.0350888]
[1644229139573,46.5877555,116.49,116.45,24.87]
[1644229139773,1.22290491,116.49,116.45,24.87]
[1644229140273,1.22290491,116.5,116.45,24.87]
[1644229140772,1.22290491,116.5,116.46,37.38706923]
[1644229143575,1.22290491,116.51,116.46,37.63706923]
[1644229143776,1.22290491,116.52,116.47,22.9337]
[1644229144480,1.22290491,116.53,116.48,34.53870796]
[1644229145275,36.73755358,116.52,116.48,34.53870796]
[1644229145478,1.22290491,116.52,116.48,34.53870796]
[1644229147377,1.22290491,116.53,116.48,34.53870796]
[1644229147678,44.78244356,116.52,116.48,34.53870796]
[1644229148079,46.00534847,116.52,116.48,34.53870796]
[1644229148277,1.22290491,116.52,116.48,34.53870796]
[1644229148680,1.22290491,116.53,116.48,34.53870796]
[1644229149883,45.78487581,116.52,116.48,34.53870796]
[1644229150282,47.00778072,116.52,116.48,34.53870796]
[1644229150883,1.22290491,116.52,116.48,34.53870796]
[1644229151586,1.22290491,116.52,116.47,22.67]
[1644229152686,41.83042238,116.52,116.47,68.61759707]
[1644229152886,1.22290491,116.52,116.47,68.61759707]
[1644229153787,1.22290491,116.53,116.47,68.61759707]
[1644229155590,1.22290491,116.53,116.47,68.86759707]
[1644229155790,1.22290491,116.54,116.47,81.28759707]
[1644229156695,1.22290491,116.55,116.47,81.28759707]
[1644229157294,1.22290491,116.55,116.47,85.57859707]
[1644229159496,1.22290491,116.56,116.47,104.45419707]
[1644229160198,1.22290491,116.56,116.47,106.31920611]
[1644229160397,1.22290491,116.57,116.47,106.31920611]
[1644229160597,1.22290491,116.58,116.48,23.2481]
[1644229160797,1.22290491,116.58,116.5,12.8728]
[1644229161019,1.22290491,116.58,116.51,74.78710082]
[1644229161319,1.22290491,116.58,116.51,75.03710082]
[1644229161519,1.22290491,116.59,116.51,75.03710082]
[1644229161717,1.22290491,116.59,116.51,79.32710082]
[1644229162120,1.22290491,116.59,116.51,85.32710082]
[1644229163618,1.22290491,116.59,116.51,81.03710082]
[1644229164220,1.22290491,116.59,116.51,93.90830082]
[1644229165821,25.12548032,116.62,116.51,95.77330986]
[1644229165822,1.22290491,116.6,116.51,95.77330986]
[1644229166020,1.22290491,116.6,116.52,4.289]
[1644229166219,0.29448032,116.62,116.53,35.6577]
[1644229166220,1.22290491,116.61,116.53,35.6577]
[1644229166421,1.22290491,116.61,116.53,58.3782]
[1644229166622,1.22290491,116.61,116.53,64.6282]
[1644229166822,1.51738523,116.62,116.54,41.96245306]
[1644229167021,1.51738523,116.62,116.55,36.413]
[1644229167222,1.51738523,116.62,116.56,39.74972945]
[1644229168023,42.77701989,116.62,116.56,39.74972945]
[1644229168227,43.9999248,116.62,116.56,39.74972945]
[1644229168424,1.51738523,116.62,116.56,39.74972945]
[1644229168625,1.51738523,116.62,116.57,24.2014]
[1644229168826,0.29448032,116.62,116.56,39.74972945]
[1644229169028,1.51738523,116.62,116.56,39.74972945]
[1644229169226,1.51738523,116.62,116.57,22.7238]
[1644229169427,1.51738523,116.62,116.58,42.03226652]
[1644229171229,39.45344741,116.62,116.55,12.42]
[1644229171434,39.45344741,116.62,116.53,35.1405]
[1644229171629,1.22290491,116.6,116.51,22.9639]
[1644229171832,24.41820491,116.6,116.51,22.9639]
[1644229172030,3.36973348,116.59,116.51,22.9639]
[1644229172229,46.31539703,116.58,116.52,40.06726298]
[1644229172430,42.02539703,116.58,116.52,40.06726298]
[1644229172629,43.24830194,116.58,116.52,40.06726298]
[1644229176535,1.22290491,116.58,116.52,40.06726298]
[1644229176735,14.10020491,116.59,116.52,40.06726298]
[1644229176937,1.22290491,116.59,116.52,40.06726298]
[1644229178335,1.22290491,116.6,116.52,40.06726298]
[1644229178536,1.22290491,116.6,116.53,22.5172]
[1644229178939,1.22290491,116.6,116.54,42.45766662]
[1644229179740,42.93163081,116.61,116.54,54.87766662]
[1644229179741,44.15453572,116.61,116.54,54.87766662]
[1644229179941,44.15453572,116.61,116.54,42.45766662]
[1644229180546,1.22290491,116.61,116.54,42.45766662]
[1644229182143,1.22290491,116.61,116.55,12.42]
[1644229182343,1.51738523,116.62,116.55,36.9507]
[1644229182542,0.29448032,116.62,116.55,36.9507]
[1644229182745,0.29448032,116.62,116.55,38.56570904]
[1644229183146,0.29448032,116.62,116.56,35.53071722]
[1644229184845,1.51738523,116.62,116.56,35.53071722]
[1644229185044,0.29448032,116.62,116.56,35.53071722]
[1644229185649,46.45846203,116.61,116.56,35.53071722]
[1644229187047,1.51738523,116.62,116.56,35.53071722]
[1644229188047,48.9076083,116.62,116.56,35.53071722]
[1644229189648,1.51738523,116.62,116.56,35.53071722]
[1644229189849,1.51738523,116.62,116.56,47.95071722]
[1644229190549,1.51738523,116.62,116.57,24.4236]
[1644229190747,45.49067078,116.62,116.58,38.95586725]
[1644229190953,45.49067078,116.62,116.57,24.4236]
[1644229191147,1.22290491,116.61,116.57,24.4236]
[1644229191551,1.22290491,116.61,116.53,12.42]
[1644229191847,1.22290491,116.61,116.55,41.72795988]
[1644229192255,1.51450917,116.62,116.55,54.39795988]
[1644229192454,0.29448032,116.62,116.56,25.55202294]
[1644229192656,0.29448032,116.62,116.57,12.42]
[1644229192854,0.29448032,116.62,116.57,12.67]
[1644229193257,0.29448032,116.62,116.58,60.51575338]
[1644229193458,0.29448032,116.62,116.58,72.93575338]
[1644229193856,0.29448032,116.62,116.58,73.18575338]
[1644229194677,0.29448032,116.62,116.58,72.93575338]
[1644229194881,0.29448032,116.62,116.58,73.18575338]
[1644229195079,0.29448032,116.62,116.58,72.93575338]
[1644229197684,0.29448032,116.62,116.58,78.93575338]
[1644229197982,0.29448032,116.62,116.58,72.93575338]
[1644229198183,0.29448032,116.62,116.58,78.93575338]
[1644229198483,0.29448032,116.62,116.58,72.93575338]
[1644229199484,0.29448032,116.62,116.58,60.51575338]
[1644229205490,0.29448032,116.62,116.58,37.53725338]
[1644229207289,0.29448032,116.62,116.55,22.568]
[1644229208290,0.29448032,116.62,116.56,44.86350666]
[1644229208790,0.29448032,116.62,116.55,22.568]
[1644229209791,0.29448032,116.62,116.53,4.288]
[1644229209990,23.13008032,116.62,116.53,22.8416]
[1644229210792,48.46094471,116.61,116.54,45.79555835]
[1644229212795,23.13008032,116.62,116.54,45.79555835]
[1644229213597,23.13008032,116.62,116.55,24.9541]
[1644229213796,23.13008032,116.62,116.56,36.04565477]
[1644229216197,36.55535255,116.61,116.55,24.9541]
[1644229216403,36.55535255,116.61,116.52,36.0703]
[1644229216599,36.55535255,116.61,116.53,22.5596]
[1644229217198,27.41908032,116.62,116.54,48.06451752]
[1644229217404,23.13008032,116.62,116.54,48.06451752]
[1644229218300,67.94165211,116.62,116.54,48.06451752]
[1644229218507,67.94165211,116.62,116.56,38.90925597]
[1644229220805,67.94165211,116.62,116.53,24.542]
[1644229221900,67.94165211,116.62,116.54,48.68541897]
[1644229222304,67.94165211,116.62,116.53,24.542]
[1644229222505,29.13922339,116.61,116.53,24.542]
[1644229222903,17.1642,116.61,116.53,24.542]
[1644229223303,38.50309962,116.6,116.54,41.38575293]
[1644229230109,12.8752,116.61,116.54,41.38575293]
[1644229230512,0.29448032,116.62,116.54,41.38575293]
[1644229231008,46.41956271,116.62,116.54,41.38575293]
[1644229233013,46.41956271,116.62,116.55,22.7757]
[1644229233212,0.29448032,116.62,116.55,22.7757]
[1644229234212,0.29448032,116.62,116.56,45.690564]
[1644229234612,0.29448032,116.62,116.58,42.13519151]
[1644229238539,0.29448032,116.62,116.58,54.08919151]
[1644229238738,0.29448032,116.62,116.59,24.4992]
[1644229238938,0.29448032,116.62,116.6,6.06439994]
[1644229239338,0.29448032,116.62,116.61,40.87047834]
[1644229243145,0.00448032,116.62,116.6,6.06439994]
[1644229243545,0.00448032,116.62,116.61,22.7866]
[1644229248451,0.58448032,116.62,116.61,63.08667841]
[1644229249251,0.1,116.68,116.62,80.58]
[1644229249450,0.1,116.68,116.63,35.85715162]
[1644229250856,0.1,116.69,116.63,35.85715162]
[1644229251054,0.1,116.7,116.63,35.85715162]
[1644229251658,0.1,116.7,116.64,23.4704]
[1644229251857,36.52806323,116.7,116.65,45.02612837]
[1644229252057,0.1,116.69,116.65,45.02612837]
[1644229252460,0.1,116.7,116.65,45.02612837]
[1644229255662,0.1,116.73,116.66,22.5879]
[1644229256260,36.67299364,116.74,116.67,45.7174395]
[1644229256462,0.1,116.73,116.67,45.7174395]
[1644229258565,0.1,116.74,116.67,45.7174395]
[1644229258765,0.1,116.74,116.68,23.6123]
[1644229259166,0.1,116.74,116.69,36.65059122]
[1644229261974,0.1,116.74,116.68,23.6123]
[1644229262392,0.1,116.74,116.65,12.42]
[1644229262995,0.1,116.74,116.66,44.5160189]
[1644229264395,0.1,116.74,116.67,24.9913]
[1644229264593,0.1,116.74,116.68,36.30311306]
[1644229265596,0.1,116.74,116.64,12.42]
[1644229265795,0.1,116.74,116.65,22.5365]
[1644229266196,0.1,116.74,116.65,22.7865]
[1644229266395,0.1,116.74,116.66,46.08417931]
[1644229270001,0.1,116.74,116.67,24.4143]
[1644229270203,0.1,116.74,116.68,42.01641189]
[1644229281218,0.1,116.74,116.68,42.26641189]
[1644229283415,0.49988972,116.76,116.68,42.26641189]
[1644229283620,0.49988972,116.76,116.69,37.99344139]
[1644229283814,0.1,116.78,116.69,38.24344139]
[1644229284015,2.55017856,116.81,116.7,6.16994139]
[1644229284216,0.00956394,116.81,116.71,36.1065]
[1644229284417,38.91590796,116.81,116.72,40.69788484]
[1644229284717,0.1,116.8,116.74,48.612631]
[1644229285318,0.1,116.8,116.74,48.862631]
[1644229285517,0.00956394,116.81,116.74,48.862631]
[1644229285716,0.00956394,116.81,116.75,24.0481]
[1644229286118,0.00956394,116.81,116.75,24.2981]
[1644229286315,0.00956394,116.81,116.76,44.03736591]
[1644229288720,0.00956394,116.81,116.75,24.0481]
[1644229289720,0.00956394,116.81,116.76,40.97293882]
[1644229297854,0.00956394,116.81,116.75,24.0481]
[1644229298554,0.00956394,116.81,116.71,40.455]
[1644229298753,44.77213429,116.8,116.72,23.3387]
[1644229298954,0.3,116.79,116.73,36.64109922]
[1644229303853,0.3,116.79,116.72,23.3387]
[1644229304855,0.3,116.79,116.72,63.02515413]
[1644229305056,0.3,116.79,116.72,23.3387]
[1644229305255,0.3,116.79,116.69,74.9416]
[1644229305455,0.3,116.79,116.69,24.8639]
[1644229306057,0.3,116.79,116.7,46.1898521]
[1644229307058,44.5333736,116.78,116.7,46.4398521]
[1644229307258,0.2,116.77,116.71,24.3618]
[1644229307458,0.3,116.77,116.72,47.32573855]
[1644229311565,0.3,116.77,116.71,24.3618]
[1644229312466,1.51978638,116.77,116.71,24.3618]
[1644229312664,46.23782004,116.76,116.71,62.66688527]
[1644229312866,0.2,116.75,116.71,62.66688527]
[1644229313566,1.21978638,116.77,116.71,62.66688527]
[1644229313766,1.21978638,116.78,116.71,62.66688527]
[1644229314365,36.72022893,116.77,116.71,62.66688527]
[1644229314568,0.2,116.76,116.71,62.66688527]
[1644229315168,0.2,116.76,116.71,62.91688527]
[1644229315668,0.2,116.76,116.71,62.66688527]
[1644229315869,1.21978638,116.77,116.71,64.55382666]
[1644229316167,1.21978638,116.78,116.71,62.91688527]
[1644229316569,38.33866744,116.77,116.71,62.66688527]
[1644229316769,0.2,116.76,116.71,62.91688527]
[1644229317668,0.2,116.76,116.71,62.66688527]
[1644229318073,1.21978638,116.78,116.71,62.66688527]
[1644229318869,45.42521678,116.78,116.71,62.91688527]
[1644229319070,0.3,116.77,116.71,62.91688527]
[1644229320071,0.3,116.77,116.71,62.66688527]
[1644229320272,1.51978638,116.77,116.71,62.66688527]
[1644229320672,0.3,116.77,116.71,62.91688527]
[1644229320872,1.51978638,116.77,116.71,62.66688527]
[1644229321073,0.3,116.77,116.71,62.66688527]
[1644229321575,0.3,116.77,116.71,24.3618]
[1644229321973,0.3,116.77,116.68,27.0497]
[1644229321974,1.21978638,116.76,116.68,27.0497]
[1644229322205,1.21978638,116.76,116.69,24.3523]
[1644229322376,1.41978638,116.76,116.69,24.3523]
[1644229322579,36.4071129,116.75,116.69,72.49247513]
[1644229322777,0.2,116.74,116.69,72.49247513]
[1644229323876,0.2,116.74,116.69,24.3523]
[1644229324277,1.41978638,116.74,116.69,24.3523]
[1644229324781,35.12528559,116.73,116.69,24.3523]
[1644229324977,0.2,116.72,116.69,24.3523]
[1644229325978,0.2,116.72,116.68,36.93856343]
[1644229330785,0.2,116.72,116.65,22.9123]
[1644229330986,0.2,116.72,116.64,23.7796]
[1644229331187,4.285,116.71,116.62,4.284]
[1644229331387,25.40138638,116.71,116.62,4.284]
[1644229331590,0.2,116.7,116.62,4.284]
[1644229331788,39.11247789,116.7,116.63,35.08034551]
[1644229331986,0.2,116.69,116.63,35.08034551]
[1644229333287,0.2,116.69,116.65,36.35659515]
[1644229335800,0.2,116.71,116.65,36.35659515]
[1644229336601,0.2,116.73,116.65,36.35659515]
[1644229336901,0.2,116.73,116.67,48.42832263]
[1644229341426,0.2,116.73,116.68,23.3138]
[1644229341627,0.2,116.73,116.69,41.24462507]
[1644229343928,0.2,116.74,116.69,41.24462507]
[1644229347736,0.2,116.74,116.65,24.9146]
[1644229347936,0.2,116.74,116.65,25.1646]
[1644229348738,0.2,116.74,116.66,42.58828003]
[1644229349039,44.58076198,116.73,116.66,42.58828003]
[1644229349238,44.58076198,116.73,116.65,25.1646]
[1644229349239,44.58076198,116.73,116.68,38.82710842]
[1644229349439,0.2,116.72,116.68,38.82710842]
[1644229352842,0.2,116.72,116.67,24.484]
[1644229354749,3.56661495,116.72,116.67,24.484]
[1644229354949,1.41978638,116.72,116.67,24.484]
[1644229355448,35.47306061,116.71,116.67,24.484]
[1644229355650,0.2,116.7,116.67,24.484]
[1644229359078,0.2,116.7,116.67,72.38667586]
[1644229359283,0.2,116.7,116.68,6.06439994]